bitfinex/quotes_ETHUSD_20250903
["timestamp","ask_amount","ask_price","bid_price","bid_amount"]
[1756881097772,0.00100001,4325.8,4325.7,4.08008297]
[1756881098073,0.00100001,4325.8,4325.7,18.58008297]
[1756881100473,0.00100001,4325.8,4325.7,18.364]
[1756881100914,0.00100001,4325.8,4325.7,19.1128]
[1756881101915,0.00100001,4325.8,4325.7,19.6011]
[1756881102115,0.00100001,4325.8,4325.7,21.91286456]
[1756881102314,0.10000001,4325.8,4325.7,18.364]
[1756881102717,0.57930001,4325.8,4325.7,14.5]
[1756881102918,0.57930001,4325.8,4325.7,18.364]
[1756881103720,0.57930001,4325.8,4325.7,3.864]
[1756881105322,0.57930001,4325.8,4325.4,14.5]
[1756881105494,0.57930001,4325.8,4325.5,3.863]
[1756881105899,0.57930001,4325.8,4325.4,14.5]
[1756881106126,7.43778504,4325.5,4325.2,0.004]
[1756881106328,7.43778504,4325.5,4325.3,3.863]
[1756881106628,0.1019,4325.4,4325.3,3.863]
[1756881106997,0.5812,4325.4,4325.2,0.004]
[1756881107196,0.5812,4325.4,4325.3,3.863]
[1756881108093,2.31197835,4325.3,4325.2,0.004]
[1756881108311,3.17597835,4325.3,4325.2,0.004]
[1756881108510,3.28067835,4325.3,4325.2,0.004]
[1756881110532,0.584,4325.3,4325.2,0.004]
[1756881111532,2.89597835,4325.3,4325.2,0.004]
[1756881112653,7.06987835,4325.3,4325.2,0.004]
[1756881113135,11.62812346,4325.3,4325.2,0.004]
[1756881113748,11.74485626,4325.3,4325.2,0.004]
[1756881113906,11.62812346,4325.3,4325.2,0.004]
[1756881117506,6.11192346,4325.3,4325.2,0.004]
[1756881117734,10.09112346,4325.3,4325.2,0.004]
[1756881120610,10.56862346,4325.3,4325.2,0.004]
[1756881121146,10.09112346,4325.3,4325.2,0.004]
[1756881122434,10.56862346,4325.3,4325.2,0.004]
[1756881123545,11.74252346,4325.3,4325.2,0.004]
[1756881123923,18.78732346,4325.3,4325.2,0.004]
[1756881124121,18.78732346,4325.3,4325.0,0.004]
[1756881124122,6.10408526,4325.1,4325.0,0.004]
[1756881124338,9.96808526,4325.1,4325.0,0.004]
[1756881124513,17.3981703,4325.1,4325.0,0.004]
[1756881125643,17.8756703,4325.1,4325.0,0.004]
[1756881127030,17.3981703,4325.1,4325.0,0.004]
[1756881127853,17.8315703,4325.1,4325.0,0.004]
[1756881128751,18.3090703,4325.1,4325.0,0.004]
[1756881129343,18.6882703,4325.1,4325.0,0.004]
[1756881130128,25.8482703,4325.1,4325.0,0.004]
[1756881132620,21.6050703,4325.1,4325.0,0.004]
[1756881132827,24.8840703,4325.1,4325.0,0.004]
[1756881133027,21.0200703,4325.1,4325.0,0.3043]
[1756881133228,24.8840703,4325.1,4325.0,0.004]
[1756881134035,25.0000703,4325.1,4325.0,0.004]
[1756881137568,25.0990703,4325.1,4325.0,0.004]
[1756881138866,22.78698504,4325.1,4325.0,0.004]
[1756881139069,25.0990703,4325.1,4325.0,0.004]
[1756881141750,25.0000703,4325.1,4325.0,0.004]
[1756881142081,10.7094,4325.1,4325.0,1.2066]
[1756881142276,14.5734,4325.1,4325.0,1.2066]
[1756881142565,16.88548526,4325.1,4325.0,1.2066]
[1756881143678,16.88548526,4325.1,4325.0,0.7377]
[1756881144184,16.88548526,4325.1,4325.0,1.2066]
[1756881145252,16.88548526,4325.1,4325.0,0.7377]
[1756881145439,16.98448526,4325.1,4325.0,0.004]
[1756881152799,17.77648526,4325.1,4325.0,0.004]
[1756881152951,18.63338526,4325.1,4325.0,0.004]
[1756881153267,17.67748526,4325.1,4325.0,0.3018]
[1756881153466,17.67748526,4325.1,4325.0,0.7617]
[1756881153979,17.67748526,4325.1,4325.0,0.3018]
[1756881154159,16.88548526,4325.1,4325.0,0.7617]
[1756881155381,16.88548526,4325.1,4325.0,0.004]
[1756881156858,16.98448526,4325.1,4325.0,0.004]
[1756881157283,16.98448526,4325.1,4324.8,0.4599]
[1756881157284,3.792,4325.0,4324.6,0.004]
[1756881157502,0.908,4324.7,4324.6,0.004]
[1756881157666,10.18619911,4324.7,4324.6,0.004]
[1756881157990,11.04019911,4324.7,4324.6,0.004]
[1756881158994,10.65549911,4324.7,4324.6,0.004]
[1756881159358,13.54288415,4324.7,4324.6,0.004]
[1756881159563,13.54288415,4324.7,4324.6,1.2494]
[1756881159564,6.29229911,4324.7,4324.6,1.2494]
[1756881159759,9.29229911,4324.7,4324.6,1.2494]
[1756881161681,15.29170309,4324.7,4324.6,1.2494]
[1756881163992,11.42770309,4324.7,4324.6,0.7617]
[1756881164188,15.29170309,4324.7,4324.6,0.004]
[1756881164357,15.39070309,4324.7,4324.6,0.004]
[1756881164563,22.18210707,4324.7,4324.6,0.004]
[1756881164868,5.31229911,4324.7,4324.6,1.2494]
[1756881165074,15.29170309,4324.7,4324.6,1.2494]
[1756881167085,15.29170309,4324.7,4324.6,0.7617]
[1756881167265,15.29170309,4324.7,4324.6,0.004]
[1756881168272,15.39070309,4324.7,4324.6,0.004]
[1756881169796,15.29170309,4324.7,4324.6,0.004]
[1756881170096,15.29170309,4324.7,4324.6,0.3018]
[1756881170962,15.29170309,4324.7,4324.6,0.004]
[1756881171403,15.29170309,4324.7,4324.6,0.3018]
[1756881172394,15.29170309,4324.7,4324.6,0.004]
[1756881173967,15.29170309,4324.7,4324.6,0.3018]
[1756881174198,15.29170309,4324.7,4324.6,0.7617]
[1756881175180,15.29170309,4324.7,4324.6,0.004]
[1756881175385,15.29170309,4324.7,4324.6,0.7617]
[1756881177307,15.29170309,4324.7,4324.6,0.3018]
[1756881177916,15.29170309,4324.7,4324.6,0.7617]
[1756881178218,15.39070309,4324.7,4324.6,0.004]
[1756881178519,15.29170309,4324.7,4324.6,0.7617]
[1756881184318,15.29170309,4324.7,4324.6,0.004]
[1756881185031,15.29170309,4324.7,4324.6,1.2373]
[1756881185513,15.29170309,4324.7,4324.6,0.7661]
[1756881186019,9.11540398,4324.7,4324.6,1.2373]
[1756881186185,0.001,4325.2,4324.6,1.2373]
[1756881186380,0.001,4325.2,4324.7,0.9244]
[1756881186721,0.001,4325.2,4324.8,2.31223009]
[1756881186885,0.001,4325.2,4325.1,0.3089]
[1756881187511,0.001,4325.2,4325.1,1.2333]
[1756881188604,0.001,4325.2,4325.1,3.54538526]
[1756881190027,0.001,4325.2,4325.1,18.04538526]
[1756881192819,0.001,4325.2,4325.1,15.7333]
[1756881193694,0.001,4325.2,4325.1,0.3089]
[1756881193695,6.00040398,4325.2,4325.1,0.3089]
[1756881193886,6.09940398,4325.2,4324.7,0.4532]
[1756881194088,5.99940398,4324.9,4324.8,0.4532]
[1756881194386,5.99940398,4324.9,4324.7,14.5]
[1756881195016,5.99940398,4324.9,4324.6,0.004]
[1756881195226,5.99940398,4324.9,4324.6,0.4572]
[1756881195430,8.31160345,4324.9,4324.6,0.4572]
[1756881195719,5.99940398,4324.9,4324.6,0.4572]
[1756881195899,5.99940398,4324.9,4324.7,0.4532]
[1756881196311,0.116,4324.8,4324.7,0.4532]
[1756881196820,0.116,4324.8,4324.6,0.004]
[1756881196821,2.31229911,4324.7,4324.6,0.004]
[1756881196985,5.31229911,4324.7,4324.6,0.004]
[1756881197188,5.87059911,4324.7,4324.6,0.004]
[1756881197897,14.67670309,4324.7,4324.6,0.004]
[1756881204711,8.29259911,4324.7,4324.6,0.004]
[1756881205526,14.29200309,4324.7,4324.6,0.004]
[1756881206310,7.83619911,4324.7,4324.6,0.004]
[1756881207330,11.59929911,4324.7,4324.6,0.004]
[1756881207644,16.80570309,4324.7,4324.6,0.3129]
[1756881207797,16.80570309,4324.7,4324.6,0.7661]
[1756881207992,16.80570309,4324.7,4324.6,0.3129]
[1756881208197,16.80570309,4324.7,4324.6,0.004]
[1756881211645,16.90470309,4324.7,4324.6,0.004]
[1756881211850,23.40040707,4324.7,4324.6,0.004]
[1756881212151,23.78800707,4324.7,4324.6,0.004]
[1756881212858,23.40040707,4324.7,4324.6,0.004]
[1756881213657,30.56040707,4324.7,4324.6,0.004]
[1756881214549,24.56100309,4324.7,4324.6,0.004]
[1756881216547,24.06470309,4324.7,4324.6,0.004]
[1756881216752,31.35240707,4324.7,4324.6,0.004]
[1756881220159,31.74000707,4324.7,4324.6,0.004]
[1756881221421,27.07271213,4324.7,4324.6,0.004]
[1756881225258,26.68511213,4324.7,4324.1,0.004]
[1756881225460,6.10472693,4323.9,4323.8,0.024]
[1756881225646,11.59872693,4323.9,4323.8,0.024]
[1756881225855,12.58162693,4323.9,4323.8,0.024]
[1756881226366,12.69762693,4323.9,4323.8,0.024]
[1756881228046,12.69762693,4323.9,4323.7,0.004]
[1756881228047,5.31278042,4323.8,4323.7,0.004]
[1756881228242,13.52529344,4323.8,4323.7,0.004]
[1756881228447,13.62999344,4323.8,4323.7,0.004]
[1756881228643,14.03729344,4323.8,4323.7,0.004]
[1756881228874,21.19729344,4323.8,4323.7,0.004]
[1756881229346,21.57919344,4323.8,4323.7,0.004]
[1756881229751,21.19729344,4323.8,4323.7,0.004]
[1756881229951,21.57919344,4323.8,4323.7,0.004]
[1756881230260,21.19729344,4323.8,4323.7,0.004]
[1756881231368,20.70099344,4323.8,4323.7,0.004]
[1756881232555,20.59629344,4323.8,4323.7,0.004]
[1756881232961,20.59629344,4323.8,4323.7,0.3142]
[1756881233350,20.59629344,4323.8,4323.7,0.004]
[1756881233750,24.46029344,4323.8,4323.7,0.8057]
[1756881233963,24.46029344,4323.8,4323.7,1.257]
[1756881234463,24.46029344,4323.8,4323.7,0.7655]
[1756881235263,24.46029344,4323.8,4323.7,0.004]
[1756881235646,25.1558561,4323.8,4323.7,0.004]
[1756881236247,25.1558561,4323.8,4323.7,0.7655]
[1756881238046,25.2548561,4323.8,4323.7,0.004]
[1756881240579,25.1558561,4323.8,4323.7,0.004]
[1756881241479,25.1558561,4323.8,4323.7,0.4353]
[1756881241680,25.1558561,4323.8,4323.7,0.7382]
[1756881242682,25.1558561,4323.8,4323.7,1.226]
[1756881242978,25.1558561,4323.8,4323.7,0.7382]
[1756881243179,25.1558561,4323.8,4323.7,0.3069]
[1756881243362,25.1558561,4323.8,4323.7,0.7382]
[1756881244071,25.1558561,4323.8,4323.7,0.004]
[1756881246683,25.1558561,4323.8,4323.2,0.004]
[1756881246684,3.1050479,4323.3,4323.2,0.004]
[1756881246874,17.30156092,4323.3,4323.2,0.004]
[1756881247481,17.39430691,4323.3,4323.2,0.004]
[1756881248466,3.792,4322.9,4322.8,0.024]
[1756881248670,18.93277495,4322.9,4322.8,0.024]
[1756881248890,19.15347495,4322.9,4322.8,0.024]
[1756881249203,19.73779543,4322.9,4322.8,0.024]
[1756881250788,19.73779543,4322.9,4322.2,0.4313]
[1756881250987,6.10531544,4322.8,4322.2,0.4313]
[1756881251378,6.10531544,4322.8,4321.8,0.02]
[1756881251702,6.19808143,4322.8,4322.4,0.4353]
[1756881252596,6.19808143,4322.8,4322.7,0.3069]
[1756881252787,10.06308143,4322.8,4322.7,1.226]
[1756881252992,10.06308143,4322.8,4322.7,0.7382]
[1756881254480,10.06308143,4322.8,4322.7,0.3069]
[1756881254677,10.23955047,4322.8,4322.7,0.3069]
[1756881254878,10.23955047,4322.8,4322.7,0.7382]
[1756881255101,10.23955047,4322.8,4322.7,0.3069]
[1756881260411,10.33855047,4322.8,4322.7,0.004]
[1756881260626,10.23955047,4322.8,4322.7,0.004]
[1756881260800,10.23955047,4322.8,4322.7,0.7382]
[1756881261214,17.39955047,4322.8,4322.7,0.7382]
[1756881263124,17.49855047,4322.8,4322.7,0.004]
[1756881264311,17.49855047,4322.8,4322.7,1e-08]
[1756881265529,17.96535047,4322.8,4322.7,1e-08]
[1756881266026,17.96535047,4322.8,4322.4,0.004]
[1756881266027,2.31347599,4322.5,4322.4,0.004]
[1756881266233,16.62598901,4322.5,4322.4,0.004]
[1756881266530,16.72788901,4322.5,4322.4,0.004]
[1756881266699,16.82066039,4322.5,4322.4,0.004]
[1756881267101,23.98066039,4322.5,4322.4,0.004]
[1756881270008,2.31374363,4322.0,4321.8,0.02]
[1756881270206,16.73551302,4321.9,4321.8,0.02]
[1756881270432,19.04931019,4321.9,4321.8,0.4539]
[1756881270835,19.04931019,4321.9,4321.8,0.7544]
[1756881272240,19.04931019,4321.9,4321.8,1e-08]
[1756881272920,2.31390425,4321.7,4321.6,0.4379]
[1756881273127,9.97090425,4321.7,4321.6,0.4379]
[1756881273433,6.10595779,4321.6,4321.5,1e-08]
[1756881273733,6.22195779,4321.6,4321.5,1e-08]
[1756881273932,10.17974724,4321.6,4321.5,0.73440001]
[1756881274232,6.10617198,4321.2,4321.1,1e-08]
[1756881274445,17.302685,4321.2,4321.1,1e-08]
[1756881274614,17.302685,4321.2,4321.1,0.30050001]
[1756881275141,17.302685,4321.2,4321.1,0.73440001]
[1756881275540,17.302685,4321.2,4321.1,1e-08]
[1756881275742,3.10633266,4320.9,4320.7,0.9216]
[1756881275907,11.60233266,4320.9,4320.3,0.004]
[1756881276248,11.60233266,4320.9,4320.8,0.3245]
[1756881276402,11.60233266,4320.9,4320.8,0.8122]
[1756881276599,11.60233266,4320.9,4320.8,1.2461]
[1756881277339,10.81033266,4320.9,4320.8,1.2461]
[1756881279945,11.60233266,4320.9,4320.8,0.3245]
[1756881280242,11.60233266,4320.9,4320.8,0.024]
[1756881280549,11.60233266,4320.9,4320.8,0.3245]
[1756881281216,11.60233266,4320.9,4320.8,0.8122]
[1756881283548,17.61334294,4320.9,4320.8,0.8122]
[1756881284217,17.72934294,4320.9,4320.8,0.3245]
[1756881284825,24.88934294,4320.9,4320.8,0.3245]
[1756881285748,24.88934294,4320.9,4320.8,1.2461]
[1756881285749,11.22133266,4320.9,4320.8,1.2461]
[1756881285927,15.08733266,4320.9,4320.8,1.2461]
[1756881286130,18.08733266,4320.9,4320.8,1.2461]
[1756881290541,15.773,4320.9,4320.8,1.2461]
[1756881291640,16.45633266,4320.9,4320.8,1.2461]
[1756881292160,14.142,4320.9,4320.8,1.2461]
[1756881293321,16.45633266,4320.9,4320.8,1.2461]
[1756881296846,12.59033266,4320.9,4320.8,1.2461]
[1756881297862,10.276,4320.9,4320.8,1.2461]
[1756881298230,12.59033266,4320.9,4320.8,1.2461]
[1756881298638,0.116,4320.9,4320.8,1.2461]
[1756881299733,0.116,4320.9,4320.8,3.56048622]
[1756881300564,0.001,4321.1,4320.8,3.56048622]
[1756881300565,0.117,4321.1,4321.0,2.3142791]
[1756881300764,0.117,4321.1,4320.9,3.27032589]
[1756881301067,0.117,4321.1,4320.9,0.956]
[1756881301262,0.117,4321.1,4321.0,1.2692]
[1756881301630,0.117,4321.1,4321.0,15.7692]
[1756881302264,0.117,4321.1,4321.0,18.0834791]
[1756881302455,0.001,4321.1,4321.0,18.0834791]
[1756881305342,0.001,4321.1,4321.0,19.6342]
[1756881305530,0.001,4321.1,4321.0,21.9484791]
[1756881306238,0.001,4321.1,4321.0,18.0834791]
[1756881313076,0.001,4321.1,4321.0,21.9484791]
[1756881316482,0.001,4321.6,4321.5,8.32502161]
[1756881316642,0.001,4321.6,4321.5,7.80901133]
[1756881316843,0.001,4321.6,4321.5,9.07821133]
[1756881319279,0.3133,4321.6,4321.5,3.94501133]
[1756881319462,0.7795,4321.6,4321.5,7.80901133]
[1756881319867,0.7795,4321.6,4321.5,1.631]
[1756881320168,0.7795,4321.6,4321.0,14.5]
[1756881320169,1.2675,4321.6,4321.0,14.5]
[1756881320490,0.9542,4321.5,4321.1,3.864]
[1756881320688,0.3123,4321.2,4321.1,3.864]
[1756881320847,0.7785,4321.2,4321.1,3.864]
[1756881321247,0.7785,4321.2,4321.0,2.31426125]
[1756881321485,0.4662,4321.1,4321.0,2.31426125]
[1756881321662,0.7785,4321.1,4321.0,6.17826125]
[1756881322785,0.7785,4321.1,4321.0,3.864]
[1756881323285,0.7785,4321.1,4321.0,3.868]
[1756881323587,0.7785,4321.1,4321.0,0.004]
[1756881323773,0.7785,4321.1,4321.0,3.868]
[1756881324082,1.2665,4321.1,4321.0,3.868]
[1756881324485,0.7785,4321.1,4321.0,3.868]
[1756881324672,0.7785,4321.1,4321.0,6.1822791]
[1756881324855,0.001,4321.6,4321.0,4.6647]
[1756881325182,0.4662,4321.5,4321.0,0.004]
[1756881325486,0.3123,4321.1,4321.0,0.004]
[1756881325664,0.3123,4321.1,4321.0,3.868]
[1756881325852,0.7785,4321.1,4321.0,3.868]
[1756881326567,0.7785,4321.1,4321.0,6.1822791]
[1756881327312,0.3123,4321.1,4321.0,6.1822791]
[1756881328856,0.3123,4321.1,4321.0,3.868]
[1756881329490,0.116,4321.4,4321.0,4.1815]
[1756881329756,0.116,4321.4,4321.1,6.17820936]
[1756881329955,0.5777,4321.4,4321.1,6.17820936]
[1756881330189,0.3105,4321.2,4321.1,6.17820936]
[1756881330512,0.5777,4321.4,4321.1,5.1059]
[1756881330513,0.116,4321.4,4321.1,5.1059]
[1756881330677,0.116,4321.4,4321.3,2.31411843]
[1756881330859,0.001,4321.6,4321.4,2.3140294]
[1756881331079,0.001,4321.6,4321.5,6.49151133]
[1756881331493,0.001,4321.6,4321.5,2.62751133]
[1756881331893,0.001,4321.6,4321.5,6.49151133]
[1756881332615,0.001,4321.6,4321.5,7.41991133]
[1756881334493,0.001,4321.6,4321.5,21.91991133]
[1756881337432,0.001,4321.6,4321.5,21.46141133]
[1756881337625,0.001,4321.6,4321.5,6.96141133]
[1756881338194,0.001,4321.6,4321.5,21.46141133]
[1756881338388,0.001,4321.6,4321.5,21.91991133]
[1756881338812,0.001,4321.6,4321.5,21.46141133]
[1756881339017,0.001,4321.6,4321.5,20.99151133]
[1756881340024,1.2288,4321.6,4321.0,0.004]
[1756881340206,0.116,4321.4,4321.1,3.13]
[1756881340408,0.3105,4321.2,4321.1,3.13]
[1756881340608,0.3105,4321.2,4321.0,0.004]
[1756881340609,0.7722,4321.2,4321.0,0.004]
[1756881340923,0.7722,4321.2,4321.1,6.17822554]
[1756881341221,0.7722,4321.2,4321.1,2.31822554]
[1756881341417,0.116,4321.4,4321.2,2.31416862]
[1756881341618,0.116,4321.4,4321.3,3.864]
[1756881341799,0.116,4321.4,4321.2,2.31416862]
[1756881342000,0.3105,4321.3,4321.1,2.31822163]
[1756881342194,0.3105,4321.3,4321.2,3.864]
[1756881343094,0.3105,4321.3,4321.2,6.17817198]
[1756881343726,0.3105,4321.3,4321.2,3.864]
[1756881345438,0.3105,4321.3,4321.1,2.31822359]
[1756881345645,0.4617,4321.2,4321.1,0.004]
[1756881345794,0.9173,4321.2,4321.1,3.868]
[1756881345998,1.2278,4321.2,4321.1,3.868]
[1756881346195,0.7722,4321.2,4321.1,3.868]
[1756881350117,0.7722,4321.2,4321.1,0.004]
[1756881350315,0.7722,4321.2,4321.1,3.868]
[1756881350624,4.2278,4321.2,4321.1,0.004]
[1756881350825,4.2278,4321.2,4321.1,3.868]
[1756881351226,4.2278,4321.2,4321.1,0.004]
[1756881351929,6.54197198,4321.2,4321.1,0.004]
[1756881359097,6.54297198,4321.2,4321.1,0.004]
[1756881361033,6.08737198,4321.2,4321.1,0.004]
[1756881361244,9.95237198,4321.2,4321.1,0.004]
[1756881361743,7.2925,4321.2,4321.1,0.8065]
[1756881361913,6.982,4321.2,4321.1,0.8065]
[1756881362114,0.117,4321.2,4321.1,1.2691]
[1756881362313,0.001,4321.2,4321.1,1.2691]
[1756881362910,0.001,4321.2,4321.1,3.58332554]
[1756881363615,0.001,4321.2,4321.1,1.2691]
[1756881365749,0.001,4321.2,4321.1,3.58332554]
[1756881365948,0.001,4321.2,4321.1,1.2691]
[1756881366818,0.001,4321.2,4321.1,0.8065]
[1756881367755,0.001,4321.2,4321.1,1.2691]
[1756881368159,0.001,4321.2,4321.1,3.58332554]
[1756881368751,0.001,4321.2,4321.1,3.60646779]
[1756881369062,0.001,4321.2,4321.1,3.58332554]
[1756881369363,0.001,4321.2,4321.1,18.08332554]
[1756881369561,0.001,4321.2,4321.1,18.19932554]
[1756881376482,0.001,4321.2,4321.1,29.39968757]
[1756881377841,1e-08,4321.2,4321.1,30.19168757]
[1756881378153,1e-08,4321.2,4321.1,30.28441507]
[1756881384594,1e-08,4321.2,4321.1,33.28441507]
[1756881384895,1e-08,4321.7,4321.6,3.10595779]
[1756881385100,1e-08,4321.7,4321.6,15.95945939]
[1756881385396,1e-08,4321.7,4321.6,17.31741982]
[1756881385708,1e-08,4321.7,4321.6,31.81741982]
[1756881387774,1e-08,4322.1,4322.0,10.44210566]
[1756881387966,1e-08,4322.1,4322.0,14.30510566]
[1756881388161,1e-08,4322.1,4322.0,15.68620566]
[1756881388475,1e-08,4322.1,4322.0,30.18620566]
[1756881390404,0.31200001,4322.1,4322.0,20.79274363]
[1756881390570,1e-08,4322.1,4322.0,20.79274363]
[1756881390771,1e-08,4322.1,4322.0,21.10054363]
[1756881390970,1e-08,4322.1,4322.0,21.59534363]
[1756881391967,1e-08,4322.1,4322.0,21.10054363]
[1756881394267,0.31200001,4322.1,4322.0,20.79274363]
[1756881397209,0.31200001,4322.1,4322.0,20.79174363]
[1756881397588,1e-08,4322.1,4322.0,21.09954363]
[1756881397774,1e-08,4322.1,4322.0,21.59434363]
[1756881398107,1e-08,4322.1,4322.0,22.03244363]
[1756881398609,1e-08,4322.1,4322.0,21.59434363]
[1756881399209,1e-08,4322.1,4322.0,21.09954363]
[1756881399583,1e-08,4322.1,4322.0,22.03244363]
[1756881402179,1e-08,4322.1,4322.0,22.82444363]
[1756881402889,1e-08,4322.1,4322.0,25.91715265]
[1756881403106,1e-08,4322.5,4322.4,3.10552952]
[1756881403282,1e-08,4322.5,4322.4,15.95702684]
[1756881403478,1e-08,4322.5,4322.4,17.29059155]
[1756881403712,1e-08,4322.5,4322.4,31.79059155]
[1756881405496,0.31200001,4322.5,4322.4,29.21393689]
[1756881405709,1e-08,4322.5,4322.4,29.21393689]
[1756881406234,1e-08,4322.5,4322.4,25.35193689]
[1756881406522,1e-08,4322.5,4322.4,29.21393689]
[1756881407486,1.22830001,4322.5,4322.4,22.42152952]
[1756881411802,1.22830001,4322.5,4322.4,14.616]
[1756881412108,1.22830001,4322.5,4322.4,3.862]
[1756881412303,7.22870738,4322.5,4322.3,0.004]
[1756881412508,12.5422033,4322.5,4322.3,3.866]
[1756881412736,6.34582952,4322.4,4322.3,0.004]
[1756881413153,6.65782952,4322.4,4322.3,0.004]
[1756881420838,0.428,4322.4,4322.3,0.004]
[1756881421045,0.116,4322.4,4322.3,0.004]
[1756881421346,0.09273224,4322.5,4322.3,2.60558304]
[1756881421726,1e-08,4322.5,4322.4,2.31352952]
[1756881421917,1e-08,4322.5,4322.3,0.7762]
[1756881422121,1e-08,4322.5,4322.4,3.863]
[1756881422531,0.28690001,4322.5,4322.4,3.863]
[1756881422851,0.76030001,4322.5,4322.4,3.863]
[1756881423945,0.76030001,4322.5,4322.3,0.004]
[1756881424151,0.4734,4322.4,4322.3,0.004]
[1756881424348,0.4734,4322.4,4322.3,3.867]
[1756881424651,0.7603,4322.4,4322.3,3.867]
[1756881426464,0.2869,4322.4,4322.3,6.18058304]
[1756881426824,1e-08,4322.5,4322.3,6.18058304]
[1756881427123,1e-08,4322.5,4322.3,3.867]
[1756881427322,0.7603,4322.4,4322.3,0.004]
[1756881427524,0.7603,4322.4,4322.3,18.367]
[1756881427756,1.2251,4322.4,4322.3,3.867]
[1756881428828,1.2251,4322.4,4322.3,0.004]
[1756881430521,0.7603,4322.4,4322.3,0.004]
[1756881430753,0.11600001,4322.5,4322.3,0.292]
[1756881431121,0.11600001,4322.5,4322.3,0.004]
[1756881431321,0.23200002,4322.5,4322.3,0.004]
[1756881431537,0.23200002,4322.5,4322.3,0.02713583]
[1756881432162,0.23200002,4322.5,4322.3,0.004]
[1756881432364,0.2869,4322.4,4322.3,0.004]
[1756881434254,0.2869,4322.4,4322.3,3.867]
[1756881434255,0.7603,4322.4,4322.3,3.867]
[1756881435167,1.2251,4322.4,4322.3,3.867]
[1756881435538,0.7603,4322.4,4322.3,3.867]
[1756881437039,3.23200002,4322.5,4322.3,3.867]
[1756881437376,0.7603,4322.4,4322.3,0.004]
[1756881437538,0.7603,4322.4,4322.3,3.866]
[1756881444142,0.2869,4322.4,4322.3,3.866]
[1756881446274,3.23200002,4322.5,4322.3,3.866]
[1756881446476,3.23200002,4322.5,4322.3,4.154]
[1756881446647,0.23200002,4322.5,4322.3,4.6382]
[1756881446849,0.23200002,4322.5,4322.3,4.154]
[1756881447050,0.23200002,4322.5,4322.4,0.4842]
[1756881447273,0.11600001,4322.5,4322.4,0.4842]
[1756881447482,0.11600001,4322.5,4322.4,0.7722]
[1756881448673,0.11600001,4322.5,4322.4,0.288]
[1756881449044,0.11600001,4322.5,4322.4,0.7722]
[1756881449248,0.11600001,4322.5,4322.4,1.2018]
[1756881451272,0.11600001,4322.5,4322.4,0.7722]
[1756881452284,0.11600001,4322.5,4322.4,15.2722]
[1756881453051,0.40840001,4322.5,4322.4,14.5]
[1756881453381,3.88010001,4322.5,4322.3,0.004]
[1756881453590,3.40840001,4322.5,4322.4,3.862]
[1756881455693,3.88010001,4322.5,4322.4,3.862]
[1756881455863,4.10394654,4322.5,4322.4,3.862]
[1756881456275,3.81154654,4322.5,4322.4,4.1675]
[1756881456579,0.81154654,4322.5,4322.4,4.6356]
[1756881456968,0.81154654,4322.5,4322.4,4.1675]
[1756881458082,0.81154654,4322.5,4322.4,3.862]
[1756881458382,1.10394654,4322.5,4322.4,3.862]
[1756881459470,1.10394654,4322.5,4322.3,0.004]
[1756881459675,1.10394654,4322.5,4322.4,3.862]
[1756881463777,0.81154654,4322.5,4322.4,3.862]
[1756881464090,0.81154654,4322.5,4322.4,5.0738]
[1756881464392,0.81154654,4322.5,4322.4,4.6356]
[1756881464571,0.81154654,4322.5,4322.4,4.1675]
[1756881464766,0.11600001,4322.5,4322.4,5.0738]
[1756881465873,0.40840001,4322.5,4322.3,0.004]
[1756881466063,3.9426,4322.4,4322.3,0.004]
[1756881466262,6.25612952,4322.4,4322.3,0.004]
[1756881466488,6.54852952,4322.4,4322.3,0.004]
[1756881472804,6.07762952,4322.4,4322.3,0.004]
[1756881473719,5.60592952,4322.4,4322.3,0.004]
[1756881478125,5.31352952,4322.4,4322.3,0.004]
[1756881478435,5.60592952,4322.4,4322.3,0.004]
[1756881482317,6.03632952,4322.4,4322.3,0.004]
[1756881484338,3.0,4322.4,4322.3,0.3166]
[1756881484500,0.81162234,4322.5,4322.3,1.2489]
[1756881484815,0.81162234,4322.5,4322.4,0.9323]
[1756881485164,0.69562234,4322.5,4322.4,0.9323]
[1756881485300,0.81162234,4322.5,4322.4,1.2449]
[1756881488339,4.98372234,4322.5,4322.3,0.004]
[1756881488545,0.4304,4322.4,4322.3,0.004]
[1756881488743,3.22382952,4322.4,4322.3,0.004]
[1756881488957,6.53392952,4322.4,4322.3,0.004]
[1756881489846,6.05402952,4322.4,4322.3,0.004]
[1756881492863,6.53392952,4322.4,4322.3,0.004]
[1756881496567,7.32592952,4322.4,4322.3,0.004]
[1756881498835,7.50262338,4322.4,4322.3,0.004]
[1756881499231,3.10574363,4322.0,4321.9,0.004]
[1756881499442,17.41868203,4322.0,4321.9,0.004]
[1756881499640,17.72878203,4322.0,4321.9,0.004]
[1756881499965,18.73185921,4322.0,4321.9,0.004]
[1756881506313,25.89185921,4322.0,4321.9,0.004]
[1756881509092,20.81045921,4322.0,4321.9,0.004]
[1756881509386,25.41295921,4322.0,4321.9,0.004]
[1756881509688,25.29695921,4322.0,4321.9,0.004]
[1756881509865,25.41295921,4322.0,4321.9,0.004]
[1756881515160,24.98255921,4322.0,4321.9,0.004]
[1756881515886,25.44035921,4322.0,4321.9,0.004]
[1756881519591,25.91515921,4322.0,4321.9,0.004]
[1756881519907,25.91515921,4322.0,4321.5,0.004]
[1756881519908,3.10595779,4321.6,4321.5,0.004]
[1756881520202,18.93489619,4321.6,4321.5,0.004]
[1756881520405,19.36559619,4321.6,4321.5,0.004]